Workbook

Sheet Tabelle1
A1: Verfügbarkeitsliste Wiener Straße 66, 3400 Klosterneuburg
V2: 2.2
B3: Top | C3: Geschoß | D3: Zimmer | E3: Ausrichtung | F3: Gesamtfläche Wohnung | G3: Wohnküche | H3: Zimmer 1 | I3: Zimmer 2 | J3: Zimmer 3 | K3: Ankleide | L3: Bad | M3: WC | N3: Vorraum | O3: Gang | P3: Abstellraum | Q3: Wirtschaftsraum | R3: Terrasse | S3: Terrasse | T3: Eigengarten exkl. Terrasse | U3: HMZ netto | V3: BK | W3: Ust. | X3: Gesamtmiete
A4: Stiege 1 | B4: TOP 106 | C4: 3.OG | D4: 2 | E4: SO | F4: 51.89 | G4: 23.95 | H4: 12.98 | L4: 5.55 | M4: 1.51 | N4: 5.08 | Q4: 2.82 | R4: 5.19 | U4: =(X4/1.1)-V4 -> 566.75 | V4: =$F4*$V$2 -> 114.16 | W4: =(U4+V4)*0.1 -> 68.09 | X4: 749.00
B5: TOP 107 | C5: 3.OG | D5: 2 | E5: SO | F5: 51.81 | G5: 23.89 | H5: 12.98 | L5: 5.55 | M5: 1.51 | N5: 5.06 | Q5: 2.82 | R5: 5.19 | U5: 566.93 | V5: 113.98 | W5: 68.09 | X5: 749.00
B6: TOP 108 | C6: 3.OG | D6: 3 | E6: SO | F6: 80.22 | G6: 29.65 | H6: 16.07 | I6: 11.54 | L6: 6.60 | M6: 1.73 | N6: 10.36 | Q6: 4.27 | R6: 12.33 | U6: 913.52 | V6: 176.48 | W6: 109.00 | X6: 1,199.00
B7: TOP 110 | C7: 4.OG | D7: 2 | E7: SO | F7: 51.89 | G7: 23.95 | H7: 12.98 | L7: 5.55 | M7: 1.51 | N7: 5.08 | Q7: 2.82 | R7: 5.19 | U7: 584.93 | V7: 114.16 | W7: 69.91 | X7: 769.00 | Y7: reserviert
B8: TOP 111 | C8: 4.OG | D8: 2 | E8: SO | F8: 51.81 | G8: 23.89 | H8: 12.98 | L8: 5.55 | M8: 1.51 | N8: 5.06 | Q8: 2.82 | R8: 5.19 | U8: 585.11 | V8: 113.98 | W8: 69.91 | X8: 769.00
B9: TOP 113 | C9: 5.OG | D9: 4 | E9: SO | F9: 101.06 | G9: 35.99 | H9: 16.64 | I9: 13.26 | J9: 10.16 | L9: 8.42 | M9: 1.75 | N9: 4.03 | O9: 7.07 | P9: 1.36 | Q9: 2.38 | S9: 15.24 | U9: 1,140.40 | V9: 222.33 | W9: 136.27 | X9: 1,499.00
B10: TOP 114 | C10: 5.OG | D10: 4 | E10: SW | F10: 100.91 | G10: 30.95 | H10: 19.08 | I10: 11.18 | J10: 10.78 | L10: 8.11 | M10: 1.84 | N10: 5.94 | O10: 9.87 | P10: 1.95 | Q10: 1.21 | S10: 27.04 | U10: 1,186.18 | V10: 222.00 | W10: 140.82 | X10: 1,549.00
B12: Stiege 1 Durchschnittsmiete gewichtet/m² | W12: =(#REF!+V12)*0.1 -> 
A13: Stiege 2 | B13: TOP 202 | C13: 1.OG | D13: 2 | E13: SO | F13: 52.87 | G13: 23.95 | H13: 13.96 | L13: 5.55 | M13: 1.51 | N13: 5.08 | Q13: 2.82 | S13: 12.69 | T13: 11.58 | U13: =(X13/1.1)-V13 -> 555.50 | V13: =$F13*$V$2 -> 116.31 | W13: =(U13+V13)*0.1 -> 67.18 | X13: 739.00
B14: TOP 203 | C14: 2.OG | D14: 3 | E14: SO | F14: 82.00 | G14: 29.65 | H14: 16.07 | I14: 11.54 | L14: 6.60 | M14: 1.73 | N14: 10.21 | P14: 1.93 | Q14: 4.27 | S14: 17.86 | T14: 56.84 | U14: 936.87 | V14: 180.40 | W14: 111.73 | X14: 1,229.00
B15: TOP 204 | C15: 2.OG | D15: 2 | E15: SO | F15: 51.81 | G15: 23.89 | H15: 12.98 | L15: 5.55 | M15: 1.51 | N15: 5.06 | Q15: 2.82 | R15: 5.19 | U15: 557.84 | V15: 113.98 | W15: 67.18 | X15: 739.00
B16: TOP 206 | C16: 2.OG | D16: 2 | E16: SO | F16: 64.27 | G16: 25.36 | H16: 10.04 | K16: 6.73 | L16: 5.17 | M16: 1.54 | N16: 8.08 | P16: 1.55 | Q16: 5.80 | R16: 8.3 | U16: 675.88 | V16: 141.39 | W16: 81.73 | X16: 899.00
B17: TOP 207 | C17: 3.OG | D17: 3 | E17: SO | F17: 80.22 | G17: 29.65 | H17: 16.07 | I17: 11.54 | L17: 6.60 | M17: 1.73 | N17: 10.36 | Q17: 4.27 | R17: 12.33 | U17: 931.70 | V17: 176.48 | W17: 110.82 | X17: 1,219.00
B18: TOP 215 | C18: 5.OG | D18: 4 | E18: O | F18: 100.91 | G18: 30.95 | H18: 19.08 | I18: 11.18 | J18: 10.78 | L18: 8.11 | M18: 1.84 | N18: 5.94 | O18: 9.87 | P18: 1.95 | Q18: 1.21 | S18: 27.84 | U18: 1,186.18 | V18: 222.00 | W18: 140.82 | X18: 1,549.00
B19: TOP 216 | C19: 5.OG | D19: 4 | E19: SO | F19: 106.28 | G19: 37.71 | H19: 15.22 | I19: 10.65 | J19: 12.80 | L19: 8.42 | M19: 1.62 | N19: 15.20 | P19: 2.80 | Q19: 1.86 | S19: 11.4 | U19: 1,192.55 | V19: 233.82 | W19: 142.64 | X19: 1,569.00
B21: Stiege 2 Durchschnittsmiete gewichtet/m² | W21: =(#REF!+V21)*0.1 -> 
A22: STIEGE 3 | B22: TOP 301 | C22: EG | D22: 3 | E22: SO | F22: 75.65 | G22: 30.86 | H22: 14.33 | L22: 7.48 | M22: 1.49 | N22: 8.64 | P22: 11.90 | S22: 13.71 | T22: 49.07 | U22: =(X22/1.1)-V22 -> 796.30 | V22: =$F22*$V$2 -> 166.43 | W22: =(U22+V22)*0.1 -> 96.27 | X22: 1,059.00
B23: TOP 303 | C23: 1.OG | D23: 3 | E23: S | F23: 75.65 | G23: 30.86 | H23: 14.33 | L23: 7.48 | M23: 1.49 | N23: 8.64 | P23: 11.90 | Q23: 4.38 | R23: 4.38 | U23: 741.75 | V23: 166.43 | W23: 90.82 | X23: 999.00
B24: TOP 304 | C24: 1.OG | D24: 2 | E24: S | F24: 53.81 | G24: 22.83 | H24: 10.98 | K24: 8.16 | L24: 4.49 | M24: 1.89 | N24: 3.23 | Q24: 3.62 | R24: 3.62 | U24: 544.35 | V24: 118.38 | W24: 66.27 | X24: 729.00
B25: TOP 306 | C25: 1.OG | D25: 2 | E25: S | F25: 51.63 | G25: 21.28 | H25: 13.32 | K25: 3.68 | L25: 4.94 | M25: 1.74 | N25: 3.57 | S25: 5.97 | T25: 36.12 | U25: 585.50 | V25: 113.59 | W25: 69.91 | X25: 769.00
B26: TOP 307 | C26: 1.OG | D26: 2 | E26: S | F26: 48.53 | G26: 21.30 | H26: 13.87 | L26: 4.94 | M26: 1.87 | N26: 3.51 | S26: 5.93 | T26: 38.13 | U26: 574.14 | V26: 106.77 | W26: 68.09 | X26: 749.00
B27: TOP 309 | C27: 2.OG | D27: 3 | E27: S | F27: 76.23 | G27: 39.84 | H27: 16.51 | L27: 6.48 | M27: 1.46 | N27: 6.79 | Q27: 4.38 | U27: 822.29 | V27: 167.71 | W27: 99.00 | X27: 1,089.00
B28: TOP 310 | C28: 2.OG | D28: 2 | E28: S | F28: 53.8 | G28: 22.83 | H28: 10.98 | K28: 8.16 | L28: 4.49 | M28: 1.89 | N28: 3.23 | Q28: 3.62 | U28: 562.55 | V28: 118.36 | W28: 68.09 | X28: 749.00
B29: TOP 311 | C29: 2.OG | D29: 2 | E29: SO | F29: 49.36 | G29: 21.17 | H29: 14.80 | L29: 4.94 | M29: 1.74 | N29: 3.57 | Q29: 3.41 | U29: 572.32 | V29: 108.59 | W29: 68.09 | X29: 749.00
B30: TOP 312 | C30: 2.OG | D30: 2 | E30: S | F30: 51.66 | G30: 21.28 | H30: 13.35 | K30: 3.68 | L30: 4.94 | M30: 1.74 | N30: 3.57 | Q30: 3.99 | U30: 567.26 | V30: 113.65 | W30: 68.09 | X30: 749.00
B31: TOP 313 | C31: 2.OG | D31: 2 | E31: S | F31: 48.53 | G31: 21.30 | H31: 13.87 | L31: 4.94 | M31: 1.87 | N31: 3.51 | Q31: 5.36 | U31: 565.05 | V31: 106.77 | W31: 67.18 | X31: 739.00
B32: TOP 314 | C32: 2.OG | D32: 3 | E32: W | F32: 72.18 | G32: 30.95 | H32: 13.71 | I32: 10.21 | L32: 5.29 | M32: 1.65 | N32: 10.14 | Q32: 4.83 | U32: 785.75 | V32: 158.80 | W32: 94.45 | X32: 1,039.00
B33: Top 317 | C33: 3. OG | D33: 4 | F33: 97.24 | R33: 8.63 | S33: 7.19 | U33: 1,103.34 | V33: 213.93 | W33: 131.73 | X33: 1,449.00
B34: TOP 320 | C34: 4.OG | D34: 2 | E34: S | F34: 45.13 | H34: 11.82 | L34: 4.05 | N34: 3.75 | Q34: 5.15 | U34: 517.99 | V34: 99.29 | W34: 61.73 | X34: 679.00
B35: TOP 321 | C35: 4.OG | D35: 4 | E35: SW | F35: 97.24 | G35: 32.51 | H35: 12.10 | I35: 15.72 | J35: 11.37 | M35: 1.70 | N35: 5.83 | O35: 7.99 | P35: 2.33 | Q35: 5.87 | S35: 4.46 | U35: 1,103.34 | V35: 213.93 | W35: 131.73 | X35: 1,449.00
B37: Stiege 3 Durchschnittsmiete gewichtet/m² | W37: =(#REF!+V37)*0.1 -> 
A38: STIEGE 4 | B38: TOP 401 | C38: EG | D38: 3 | E38: O | F38: 85.41 | S38: 44.14 | T38: 48.81 | U38: =(X38/1.1)-V38 -> 920.28 | V38: =$F38*$V$2 -> 187.90 | W38: =(U38+V38)*0.1 -> 110.82 | X38: 1,219.00
B39: TOP 403 | C39: EG | D39: 3 | E39: SO | F39: 78.9 | S39: 16.97 | T39: 50.12 | U39: 898.24 | V39: 173.58 | W39: 107.18 | X39: 1,179.00
B40: TOP 405 | C40: 1.OG | D40: 3 | E40: O | F40: 85.41 | R40: 6.97 | U40: 856.64 | V40: 187.90 | W40: 104.45 | X40: 1,149.00
B41: TOP 407 | C41: 1.OG | D41: 3 | E41: SO | F41: 79.23 | R41: 6.58 | U41: 842.97 | V41: 174.31 | W41: 101.73 | X41: 1,119.00
B42: TOP 409 | C42: 2.OG | D42: 3 | E42: O | F42: 85.41 | R42: 6.97 | U42: 883.92 | V42: 187.90 | W42: 107.18 | X42: 1,179.00
B43: TOP 411 | C43: 2.OG | D43: 3 | E43: SO | F43: 80.28 | R43: 6.58 | U43: 867.93 | V43: 176.62 | W43: 104.45 | X43: 1,149.00
B44: TOP 412 | C44: 2.OG | D44: 3 | E44: W | F44: 84.99 | R44: 7.17 | U44: 884.84 | V44: 186.98 | W44: 107.18 | X44: 1,179.00
B45: TOP 413 | C45: 3.OG | D45: 3 | E45: O | F45: 85.41 | R45: 6.97 | U45: 902.10 | V45: 187.90 | W45: 109.00 | X45: 1,199.00 | Y45: reserviert
B46: TOP 415 | C46: 3.OG | D46: 3 | E46: SW | F46: 87.96 | R46: 6.58 | S46: 40.63 | U46: 987.40 | V46: 193.51 | W46: 118.09 | X46: 1,299.00
B47: TOP 416 | C47: 3.OG | D47: 4 | E47: W | F47: 104.36 | S47: 39.07 | U47: 1,133.14 | V47: 229.59 | W47: 136.27 | X47: 1,499.00
B48: TOP 417 | C48: 4.OG | D48: 4 | E48: OSW | F48: 108.06 | S48: 99.14 | U48: 1,261.36 | V48: 237.73 | W48: 149.91 | X48: 1,649.00
B49: TOP 418 | C49: 4.OG | D49: 3 | F49: 85.32 | S49: 90.79 | U49: 1,038.66 | V49: 187.70 | W49: 122.64 | X49: 1,349.00
A51: Stellplätze
